Cogmind - Beta 11.1 --- EXPLORER MODE // 2022.06.14 @ 18:35:51 // Winter2019/RPGLIKE Player: Grimbling Result: Destroyed by Q060-a with Enhanced Force Lance Performance ------------- Evolutions (8) 4000 Regions Visited (32) 6400 Robots Destroyed (232) 1160 Value Destroyed (11372) 11372 Prototype IDs (102) 2040 Alien Tech Used (3) 600 Bonus (7791) 7791 TOTAL SCORE: 33363 Bonus ------- High Alert Combat Kills 692 Follower Combat Kills 976 Network Hubs Disabled 800 Met Data Miner 300 Met Imprinter 300 Destroyed Z-Imprinter 1000 Met Zhirov 300 Met Warlord at Base 500 MAIN.C Attacked Warlord 500 Built Enhanced Grunts 300 Met R17 at Cetus 500 Read Decrypted Archives 300 Scanned by Researcher 1000 Pursued by Intercept 500 Friendly Fire -177 Cogmind --------- Core Integrity 0/1000 Matter 300/300 Energy 65/420 System Corruption 0% Temperature Cool (0) Movement Core (275) Ox5 Location -2/Section 7 Parts ------- > --- POWER (5) -------- Light Antimatter Reactor Zionite Light DM Reactor Zionite Light DM Reactor Zionite Light DM Reactor Micro Antimatter Reactor > --- PROPULSION (6) --- Zionite Glidesys I Zionite Glidesys II Cooled Antigrav System Cooled Antigrav System Cooled Linear Gravjet Combat Linear Gravjet > --- UTILITY (11) ----- Experimental Power Amplifier Zionite Metafield Generator Advanced Signal Interpreter Advanced Terrain Scanner Experimental Reaction Control System Advanced Phase Shifter Experimental Cloaking Device Graphene Brace Beam Splitter Experimental EM Disruption Field Improved Force Field > --- WEAPON (3) ------- Heavy Dispersion Rifle Enhanced Quantum Rifle > --- INVENTORY (5) ---- Advanced Power Amplifier Advanced Transmission Jammer Integrated Dissipator Peak State ------------ > --- POWER ------------ Light Antimatter Reactor Zionite Light DM Reactor Zionite Light DM Reactor Zionite Light DM Reactor Micro Antimatter Reactor > --- PROPULSION ------- Zionite Glidesys I Zionite Glidesys II Cooled Antigrav System Cooled Antigrav System Cooled Linear Gravjet Combat Linear Gravjet > --- UTILITY ---------- Experimental Power Amplifier Zionite Metafield Generator Advanced Signal Interpreter Advanced Terrain Scanner Experimental Reaction Control System Advanced Phase Shifter Experimental Cloaking Device Graphene Brace Beam Splitter Experimental EM Disruption Field Improved Force Field > --- WEAPON ----------- Zionite Laser-M Zionite Laser-M Heavy Dispersion Rifle > --- INVENTORY -------- Protomatter Advanced Power Amplifier Advanced Transmission Jammer Integrated Dissipator Enhanced Quantum Rifle [Rating: 208] Favorites ----------- Power Zionite Light DM Reactor Engine Ion Engine Power Core Micro Fission Core Reactor Zionite Light DM Reactor Propulsion Zionite Glidesys I Leg Aluminum Leg Hover Unit Zionite Glidesys I Utility Experimental Reaction Control System Device Experimental Reaction Control System Storage Zionite Biocell Processor Improved Signal Interpreter Protection Light Armor Plating Weapon Zionite Laser-M Energy Gun Zionite Laser-M Energy Cannon Advanced Beam Cannon Special Weapon Mining Laser Build | -11 -10 -10 -10 -9 -8 -7 -7 -7 -7 -7 -6 -6 -6 -6 -6 -5 -5 -5 -5 -5 -4 -4 -4 -4 -4 -4 -3 -3 -3 -2 -2 -2 ------- Run | Scr Mat Min Exi Min Mat Fac Low Low Zio Dee Pro Fac Low Low Dat Pro Fac Upp Upp War Pro Fac Ext Cet Arc Hub Res Arm Lab Res Tes Sec Slots Evolved 21 | 5 . . . . 4 2 2 . . . . 1 . . . 1 2 . . . 1 . 1 . . . 1 . . 1 . . Power 4 | . . . . . 1 . 1 . . . . 1 . . . . . . . . 1 . . . . . . . . . . . Propulsion 5 | 2 . . . . 2 . 1 . . . . . . . . . . . . . . . . . . . . . . . . . Utility 10 | 2 . . . . . 2 . . . . . . . . . 1 2 . . . . . 1 . . . 1 . . 1 . . Weapon 2 | 1 . . . . 1 . . . . . . . . . . . . . . . . . . . . . . . . . . . Parts Attached 164 | 8 1 . . 3 22 12 5 1 . 29 . 2 . . . 1 6 . . 9 . 1 5 5 . 6 12 3 . 9 16 8 Power 24 | 1 . . . . 4 1 1 . . 4 . 1 . . . . 1 . . 3 . 1 . . . 2 1 . . . 2 2 Engine 3 | 1 . . . . 2 . . . . . . . . . . . . . . . . . . . . . . . . . . . Core 8 | . . . . . 2 1 1 . . . . . . . . . 1 . . 1 . . . . . 1 . . . . . 1 Reactor 13 | . . . . . . . . . . 4 . 1 . . . . . . . 2 . 1 . . . 1 1 . . . 2 1 Propulsion 29 | 2 1 . . . 10 3 1 . . 8 . . . . . . . . . 2 . . . . . . . . . 1 1 . Treads . | . . . . . . . . . . . . . . . . . . . . . . . . . . . . . . . . . Leg 5 | 2 1 . . . 2 . . . . . . . . . . . . . . . . . . . . . . . . . . . Wheel . | . . . . . . . . . . . . . . . . . . . . . . . . . . . . . . . . . Hover 24 | . . . . . 8 3 1 . . 8 . . . . . . . . . 2 . . . . . . . . . 1 1 . Flight . | . . . . . . . . . . . . . . . . . . . . . . . . . . . . . . . . . Utility 71 | 3 . . . . 1 3 . 1 . 14 . 1 . . . 1 4 . . 2 . . 5 3 . 4 7 3 . 7 8 4 Device 50 | 1 . . . . . 2 . . . 7 . 1 . . . 1 3 . . 2 . . 5 . . 4 5 3 . 7 5 4 Storage 1 | . . . . . . . . . . 1 . . . . . . . . . . . . . . . . . . . . . . Processor 5 | . . . . . . 1 . . . . . . . . . . . . . . . . . 1 . . 2 . . . 1 . Hackware . | . . . . . . . . . . . . . . . . . . . . . . . . . . . . . . . . . Protection 15 | 2 . . . . 1 . . 1 . 6 . . . . . . 1 . . . . . . 2 . . . . . . 2 . Artifact . | . . . . . . . . . . . . . . . . . . . . . . . . . . . . . . . . . Weapon 40 | 2 . . . 3 7 5 3 . . 3 . . . . . . 1 . . 2 . . . 2 . . 4 . . 1 5 2 Energy Gun 37 | 2 . . . 2 6 5 2 . . 3 . . . . . . 1 . . 2 . . . 2 . . 4 . . 1 5 2 Energy Cannon 1 | . . . . . 1 . . . . . . . . . . . . . . . . . . . . . . . . . . . Ballistic Gun . | . . . . . . . . . . . . . . . . . . . . . . . . . . . . . . . . . Ballistic Cannon . | . . . . . . . . . . . . . . . . . . . . . . . . . . . . . . . . . Launcher . | . . . . . . . . . . . . . . . . . . . . . . . . . . . . . . . . . Special Weapon 2 | . . . . 1 . . 1 . . . . . . . . . . . . . . . . . . . . . . . . . Impact Weapon . | . . . . . . . . . . . . . . . . . . . . . . . . . . . . . . . . . Slashing Weapon . | . . . . . . . . . . . . . . . . . . . . . . . . . . . . . . . . . Piercing Weapon . | . . . . . . . . . . . . . . . . . . . . . . . . . . . . . . . . . Special Melee Weapon . | . . . . . . . . . . . . . . . . . . . . . . . . . . . . . . . . . Unidentified Prototypes 47 | . . . . . 5 3 1 . . 12 . . . . . . 1 . . 4 . . . 2 . 1 4 . . 2 7 5 Parts Lost 7 | . . . . . . . . . . . . . . . . . 1 . . . . . . . . 1 1 . . . 1 3 Power 2 | . . . . . . . . . . . . . . . . . 1 . . . . . . . . 1 . . . . . . Propulsion . | . . . . . . . . . . . . . . . . . . . . . . . . . . . . . . . . . Utility 1 | . . . . . . . . . . . . . . . . . . . . . . . . . . . 1 . . . . . Weapon 4 | . . . . . . . . . . . . . . . . . . . . . . . . . . . . . . . 1 3 Highest Loss Streak 2 | . . . . . . . . . . . . . . . . . 1 . . . . . . . . 1 1 . . . 1 2 To Critical Strikes . | . . . . . . . . . . . . . . . . . . . . . . . . . . . . . . . . . Average Slot Usage (%) 97 | . 89 100 100 100 94 95 95 100 100 99 100 100 100 100 100 100 95 95 95 95 90 94 95 95 95 96 99 100 100 100 98 99 Engine 3 | . 11 11 11 11 8 6 5 5 5 . . . . . . . . . . . . . . . . . . . . . . . Core 2 | . . . . . 5 6 8 11 11 4 . . . . . . 1 4 4 4 4 4 4 4 4 3 . . . . . . Reactor 11 | . . . . . . . . . . 11 17 21 22 22 22 21 16 14 14 14 13 17 17 17 17 17 19 20 20 20 18 19 Leg 6 | . 23 33 33 33 23 . . . . . . . . . . . . . . . . . . . . . . . . . . . Hover 22 | . . . . . 5 33 33 35 35 34 35 33 33 33 33 31 28 28 28 28 27 27 26 26 26 26 25 25 25 24 24 24 Device 21 | . 11 11 11 11 8 9 11 11 11 15 17 16 16 16 16 21 22 23 23 23 22 22 24 26 26 29 36 37 37 39 39 40 Processor 3 | . . . . . . 4 5 5 5 5 5 5 5 5 5 5 4 4 4 4 4 4 4 4 4 4 4 4 4 4 4 4 Protection 8 | . 22 22 22 22 16 13 11 11 11 6 5 5 5 5 5 5 4 4 4 4 4 4 4 4 4 2 . . . . . . Energy Gun 16 | . 22 22 22 21 24 20 16 17 17 17 17 16 16 16 16 15 14 14 14 14 13 13 13 13 13 13 12 12 12 12 12 11 Naked Turns . | . . . . . . . . . . . . . . . . . . . . . . . . . . . . . . . . . Heaviest Build 101 | 15 15 15 15 17 29 34 40 47 47 60 60 70 70 70 70 73 77 70 70 90 67 79 94 94 93 93 91 92 92 99 101 100 Greatest Support 102 | 25 35 35 35 35 57 47 56 56 56 91 91 91 91 91 91 91 91 91 91 96 94 94 94 94 94 99 99 99 99 99 102 102 Greatest Overweight (x) 5 | . . . . . 2 . . . . . . . . . . . . . . . . . . . . . . . . . . 5 Average Overweight (x) . | . . . . . . . . . . . . . . . . . . . . . . . . . . . . . . . . . Largest Inventory Capacity 5 | 3 3 3 4 4 4 4 4 4 4 5 5 5 5 5 5 5 5 5 5 5 5 5 5 5 5 5 5 5 5 5 5 5 Average Capacity 4 | 2 3 3 3 4 4 4 4 4 4 4 5 5 5 5 5 5 5 5 5 5 5 5 5 5 5 5 5 5 5 5 5 5 Most Carried 5 | . 1 2 2 3 4 4 4 4 4 5 5 5 5 5 5 5 5 5 5 5 5 5 5 5 5 5 5 5 5 5 5 5 Average Carried 3 | . . 1 2 2 2 3 3 3 4 4 5 4 5 5 5 4 4 5 5 4 5 4 4 5 5 4 3 4 5 4 4 4 Final Capacity 5 | 3 3 3 4 4 4 4 4 4 4 5 5 5 5 5 5 5 5 5 5 5 5 5 5 5 5 5 5 5 5 5 5 5 Final Carried 5 | . 1 2 2 1 3 4 4 4 4 5 5 5 5 5 5 5 5 5 5 5 5 5 5 5 5 5 3 5 5 5 5 3 Class Distribution -------------------- 38% | Scavenger-Scout 23% | Hacker-Skirmisher 21% | Generator-Scout 16% | Hacker-Scout Dominant Class ---------------- Hacker-Skirmisher | -10/Materials Hacker-Skirmisher | -10/Mines Hacker-Skirmisher | -10/Exiles Hacker-Skirmisher | -9/Mines Hacker-Skirmisher | -8/Materials Hacker-Scout | -7/Factory Hacker-Scout | -7/Lower Caves Hacker-Scout | -7/Lower Caves Hacker-Scout | -7/Zion Scavenger-Scout | -7/Deep Caves Scavenger-Scout | -6/Proximity Caves Scavenger-Scout | -6/Factory Scavenger-Scout | -6/Lower Caves Scavenger-Scout | -6/Lower Caves Scavenger-Scout | -6/Data Miner Scavenger-Scout | -5/Proximity Caves Scavenger-Scout | -5/Factory Scavenger-Scout | -5/Upper Caves Scavenger-Scout | -5/Upper Caves Scavenger-Scout | -5/Warlord Scavenger-Scout | -4/Proximity Caves Scavenger-Scout | -4/Factory Scavenger-Scout | -4/Extension Scavenger-Scout | -4/Cetus Scavenger-Scout | -4/Archives Scavenger-Scout | -4/Hub_04(d) Generator-Scout | -3/Research Generator-Scout | -3/Armory Generator-Scout | -3/Lab Generator-Scout | -2/Research Generator-Scout | -2/Testing Generator-Scout | -2/Section 7 Resources | -11 -10 -10 -10 -9 -8 -7 -7 -7 -7 -7 -6 -6 -6 -6 -6 -5 -5 -5 -5 -5 -4 -4 -4 -4 -4 -4 -3 -3 -3 -2 -2 -2 ----------- Run | Scr Mat Min Exi Min Mat Fac Low Low Zio Dee Pro Fac Low Low Dat Pro Fac Upp Upp War Pro Fac Ext Cet Arc Hub Res Arm Lab Res Tes Sec Matter Collected 1879 | 280 . 10 . 30 190 150 45 31 . 290 . 20 . . . 10 60 . . . 34 66 40 60 . 68 130 30 . 63 197 75 Remotely . | . . . . . . . . . . . . . . . . . . . . . . . . . . . . . . . . . Salvage Created 11225 | 94 259 . . 161 1212 732 56 65 . 1067 103 262 75 . . 96 661 . . . . 271 1081 330 39 1107 492 1550 . 155 1070 287 Parts 518 | 7 12 . . . 71 30 3 1 . 36 1 21 5 7 . 5 39 . . . . 14 41 27 3 43 18 68 . 10 38 18 Haulers Intercepted 14 | . . . . . 3 2 . . . . . 1 . . . . 1 . . . . . . . . 4 1 . . 1 1 . Recyclers Shooed 1 | . . . . . . . . . . . . . . . . . . . . . . . 1 . . . . . . . . . Parts Field Recycled . | . . . . . . . . . . . . . . . . . . . . . . . . . . . . . . . . . Retrieved Matter . | . . . . . . . . . . . . . . . . . . . . . . . . . . . . . . . . . Parts Self-Destructed . | . . . . . . . . . . . . . . . . . . . . . . . . . . . . . . . . . Prevented . | . . . . . . . . . . . . . . . . . . . . . . . . . . . . . . . . . Kills | -11 -10 -10 -10 -9 -8 -7 -7 -7 -7 -7 -6 -6 -6 -6 -6 -5 -5 -5 -5 -5 -4 -4 -4 -4 -4 -4 -3 -3 -3 -2 -2 -2 ------- Run | Scr Mat Min Exi Min Mat Fac Low Low Zio Dee Pro Fac Low Low Dat Pro Fac Upp Upp War Pro Fac Ext Cet Arc Hub Res Arm Lab Res Tes Sec Combat Hostiles Destroyed 173 | . 8 . . 8 25 13 1 3 . 15 1 6 4 2 . 2 8 . . . . 4 10 8 . 12 2 22 . 1 11 7 Guns 165 | . 7 . . 8 23 11 1 3 . 15 1 6 4 2 . 2 8 . . . . 4 9 8 . 12 1 22 . 1 10 7 Classes Destroyed 21 | 2 2 . . 1 5 4 . . . 1 . . . . . . 1 . . . . . . . . 1 . 2 . . 2 . Worker 8 | . . . . . 1 2 . . . . . . . . . . . . . . . . . . . 2 . . . 2 . 1 Builder 5 | . . . . . . . . . . . . . . . . . 3 . . . . . . . . 1 . . . . 1 . Tunneler 2 | 1 . . . . 1 . . . . . . . . . . . . . . . . . . . . . . . . . . . Hauler 14 | . . . . . 3 2 . . . . . 1 . . . . 1 . . . . . . . . 4 1 . . 1 1 . Recycler 4 | 1 . . . . . . . . . . . . . . . . . . . . . . 3 . . . . . . . . . Operator 12 | . . . . . . 1 . . . . . 1 . . . . 2 . . . . . 1 . . 1 . 4 . . 2 . Drone 1 | . . . . . . . . . . . . . . . . . . . . . . . . . . 1 . . . . . . Watcher 22 | . . . . . 3 3 . . . . . 2 . . . . 2 . . . . . 1 . . 2 3 3 . 1 2 . Swarmer 42 | . 4 . . . 7 3 . 3 . . . 2 3 . . . . . . . . . . 2 . 4 . 7 . . . 7 Grunt 37 | . 4 . . . 9 6 . . . . . 1 1 . . 1 2 . . . . 2 3 . . 5 . . . . 3 . Brawler 3 | . . . . . . 1 . . . . . . . . . 1 1 . . . . . . . . . . . . . . . Duelist 3 | . . . . . 1 . . . . . . . . . . . . . . . . . . . . . . 2 . . . . Protector 2 | . . . . . . . . . . . . . . . . . . . . . . . . . . . . 2 . . . . Researcher 3 | . . . . . . . . . . . . . . . . . . . . . . . . . . . . . . . 1 2 Sentry 25 | . . . . . 8 1 . . . . 1 1 . . . . 1 . . . . . 4 . . 1 2 5 . 1 . . Specialist 1 | . . . . . . . . . . . . . . . . . . . . . . . . . . . . 1 . . . . Hunter 19 | . . . . . . 1 . . . . . 1 . 2 . . 2 . . . . 2 2 . . . . 2 . . 7 . Programmer 10 | . . . . . . 1 1 . . . . 1 . . . . 2 . . . . . 1 . . . . 4 . . . . Cetus Guard 6 | . . . . . . . . . . . . . . . . . . . . . . . . 6 . . . . . . . . Lightning 1 | . . . . . . . . . . . . . . . . . . . . . . . . . . 1 . . . . . . Fortress 1 | . . . . . . . . . . . . . . . . . . . . . . . . . . . . . . . 1 . Z-Light 11 | . . . . . . . . . . 11 . . . . . . . . . . . . . . . . . . . . . . Assembled 11 | . . . . 8 . . . . . 3 . . . . . . . . . . . . . . . . . . . . . . Best Kill Streak 11 | 2 2 . . 3 7 3 1 3 . 5 1 3 3 2 . 2 10 . . . . 3 6 3 . 9 4 11 . 4 5 8 Combat Bots Only 11 | . 2 . . 3 3 3 1 3 . 5 1 2 3 2 . 2 3 . . . . 3 3 3 . 8 1 11 . 1 3 7 Max Kills in Single Turn 3 | 1 1 . . 1 1 2 1 1 . 1 1 2 2 1 . 1 1 . . . . 1 1 1 . 2 1 2 . 1 1 3 Gunslinging 1 | . . . . . . 1 . . . . . . 1 . . . . . . . . . . . . 1 . 1 . . . 1 Exploded . | . . . . . . . . . . . . . . . . . . . . . . . . . . . . . . . . . Melee . | . . . . . . . . . . . . . . . . . . . . . . . . . . . . . . . . . Uniques/NPCs Destroyed 1 | . . . . . . . . . . 1 . . . . . . . . . . . . . . . . . . . . . . Z-Imprinter (-7/Deep Caves) Combat | -11 -10 -10 -10 -9 -8 -7 -7 -7 -7 -7 -6 -6 -6 -6 -6 -5 -5 -5 -5 -5 -4 -4 -4 -4 -4 -4 -3 -3 -3 -2 -2 -2 -------- Run | Scr Mat Min Exi Min Mat Fac Low Low Zio Dee Pro Fac Low Low Dat Pro Fac Upp Upp War Pro Fac Ext Cet Arc Hub Res Arm Lab Res Tes Sec Damage Taken 4981 | . 117 . . 558 334 246 13 78 . 634 11 24 . 19 . 35 172 11 38 . . 169 78 147 . 404 8 175 . 9 126 1575 Core 3486 | . 73 . . 393 208 162 9 50 . 447 7 15 . 15 . 26 95 8 29 . . 83 35 88 . 278 6 130 . 7 94 1228 Absorbed by Shields 1593 | . . . . . . 21 6 33 . 98 . . . . . . 32 . . . . . 82 155 . 357 8 192 . 10 134 465 Redirected to Core 2982 | . 50 . . 280 175 135 9 50 . 374 7 13 . 15 . 26 89 8 29 . . 83 35 76 . 259 6 122 . 7 81 1053 Core Remaining (%) 85 | 100 . . . 39 98 . . . . . 76 . . . . 100 . . . . 95 . . . . 78 . . 99 . . . Volleys Fired 548 | 5 25 . . 28 55 40 3 5 1 29 3 15 5 3 . 7 25 . . . . 10 32 22 5 46 10 69 3 11 50 41 Largest 3 | 1 2 . . 2 3 3 3 3 3 3 3 3 3 3 . 3 3 . . . . 3 3 3 1 3 3 3 3 3 3 3 Hottest 240 | 40 90 . . 90 187 201 201 201 201 206 206 206 206 206 . 206 206 . . . . 206 206 206 73 206 206 206 206 211 240 240 Shots Fired 1542 | 5 45 . . 56 165 120 5 15 3 87 9 45 15 9 . 21 75 . . . . 30 96 66 5 138 30 207 9 33 148 105 Gun 1542 | 5 45 . . 56 165 120 5 15 3 87 9 45 15 9 . 21 75 . . . . 30 96 66 5 138 30 207 9 33 148 105 Cannon . | . . . . . . . . . . . . . . . . . . . . . . . . . . . . . . . . . Launcher . | . . . . . . . . . . . . . . . . . . . . . . . . . . . . . . . . . Special . | . . . . . . . . . . . . . . . . . . . . . . . . . . . . . . . . . Kinetic . | . . . . . . . . . . . . . . . . . . . . . . . . . . . . . . . . . Thermal 1542 | 5 45 . . 56 165 120 5 15 3 87 9 45 15 9 . 21 75 . . . . 30 96 66 5 138 30 207 9 33 148 105 Explosive . | . . . . . . . . . . . . . . . . . . . . . . . . . . . . . . . . . Electromagnetic . | . . . . . . . . . . . . . . . . . . . . . . . . . . . . . . . . . Robot Hit Streak 58 | 2 21 . . 11 25 30 6 9 . 52 10 36 15 7 . 13 33 . . . . 51 58 31 18 52 16 34 . 38 53 58 Robot Miss Streak 2 | 1 1 . . 2 1 1 . 2 . 1 . 1 1 1 . 1 1 . . . . . 2 1 . 2 1 2 . . 2 1 Penetration Max . | . . . . . . . . . . . . . . . . . . . . . . . . . . . . . . . . . Secondary Targets 40 | . . . . 2 2 3 . 1 . 5 . . 2 . . . 1 . . . . 3 1 5 . 4 . 6 . . 2 3 Max Gunslinging Chain 1 | . . . . 1 1 1 . 1 . 1 . . 1 . . . 1 . . . . 1 1 1 . 1 . 1 . . 1 1 Shots Hit Robots 1138 | 3 38 . . 43 122 97 4 11 . 80 9 32 13 8 . 17 53 . . . . 23 66 56 5 87 21 158 . 26 100 66 Core Hits 454 | 3 15 . . 20 46 33 2 5 . 32 2 14 6 4 . 5 22 . . . . 9 28 20 2 42 13 58 . 9 41 23 Critical Kills 4 | . . . . . . . . . . . . . . . . . . . . . . . . . . . . . . . 2 2 Critical Parts Destroyed 7 | . . . . . . . . . . . . . . . . . . . . . . . . . . . . . . . 7 . Critical Strikes 33 | . 3 . . 2 4 9 . 2 . 1 . . . . . . . . . . . . . . . . . . . . 10 2 Burn 21 | . 3 . . 2 4 9 . 2 . 1 . . . . . . . . . . . . . . . . . . . . . . Destroy 12 | . . . . . . . . . . . . . . . . . . . . . . . . . . . . . . . 10 2 Melee Attacks . | . . . . . . . . . . . . . . . . . . . . . . . . . . . . . . . . . Impact . | . . . . . . . . . . . . . . . . . . . . . . . . . . . . . . . . . Slashing . | . . . . . . . . . . . . . . . . . . . . . . . . . . . . . . . . . Piercing . | . . . . . . . . . . . . . . . . . . . . . . . . . . . . . . . . . Sneak Attacks . | . . . . . . . . . . . . . . . . . . . . . . . . . . . . . . . . . Combat Hostiles . | . . . . . . . . . . . . . . . . . . . . . . . . . . . . . . . . . Follow-up Attacks . | . . . . . . . . . . . . . . . . . . . . . . . . . . . . . . . . . Damage Inflicted 35219 | 31 468 . . 501 2355 2114 112 254 . 2501 317 1219 456 274 . 597 2323 . . . . 809 2500 1947 182 3958 736 5603 . 938 2857 2167 Guns 34351 | 31 468 . . 501 2354 2114 112 254 . 2501 317 1219 456 274 . 597 2323 . . . . 809 2500 1947 182 3096 736 5603 . 938 2857 2162 Cannons . | . . . . . . . . . . . . . . . . . . . . . . . . . . . . . . . . . Explosions 862 | . . . . . . . . . . . . . . . . . . . . . . . . . . 862 . . . . . . Melee . | . . . . . . . . . . . . . . . . . . . . . . . . . . . . . . . . . Ramming 6 | . . . . . 1 . . . . . . . . . . . . . . . . . . . . . . . . . . 5 Kinetic . | . . . . . . . . . . . . . . . . . . . . . . . . . . . . . . . . . Thermal 34351 | 31 468 . . 501 2354 2114 112 254 . 2501 317 1219 456 274 . 597 2323 . . . . 809 2500 1947 182 3096 736 5603 . 938 2857 2162 Explosive . | . . . . . . . . . . . . . . . . . . . . . . . . . . . . . . . . . Electromagnetic 862 | . . . . . . . . . . . . . . . . . . . . . . . . . . 862 . . . . . . Impact . | . . . . . . . . . . . . . . . . . . . . . . . . . . . . . . . . . Slashing . | . . . . . . . . . . . . . . . . . . . . . . . . . . . . . . . . . Piercing . | . . . . . . . . . . . . . . . . . . . . . . . . . . . . . . . . . Highest Corruption 7 | . . . . . . 1 2 2 2 . . . . . . . . . . . . . . . . 7 . . . . . . Average Corruption 2 | . . . . . . 1 1 2 2 . . . . . . . . . . . . . . . . 3 . . . . . . Corruption Purged . | . . . . . . . . . . . . . . . . . . . . . . . . . . . . . . . . . Corruption Blocked 26 | . . . . . . . . . . . . . . . . . . . . . . . . . . . . . . 26 . . Effects 6 | . . . . . . . 1 2 . . . . . . . . . . . . . . . . . 3 . . . . . . Message Errors 1 | . . . . . . . . . . . . . . . . . . . . . . . . . . 1 . . . . . . Matter Fused 4 | . . . . . . . 1 2 . . . . . . . . . . . . . . . . . 1 . . . . . . Energy Discharges 1 | . . . . . . . . . . . . . . . . . . . . . . . . . . 1 . . . . . . Overload Shots . | . . . . . . . . . . . . . . . . . . . . . . . . . . . . . . . . . Overflow Damage 214 | . . . . . . . . . . . . . . . . . . . . . . . . . . 214 . . . . . . Projectiles . | . . . . . . . . . . . . . . . . . . . . . . . . . . . . . . . . . Explosions 214 | . . . . . . . . . . . . . . . . . . . . . . . . . . 214 . . . . . . Melee . | . . . . . . . . . . . . . . . . . . . . . . . . . . . . . . . . . Knockbacks . | . . . . . . . . . . . . . . . . . . . . . . . . . . . . . . . . . Impact . | . . . . . . . . . . . . . . . . . . . . . . . . . . . . . . . . . Kinetic . | . . . . . . . . . . . . . . . . . . . . . . . . . . . . . . . . . Secondary . | . . . . . . . . . . . . . . . . . . . . . . . . . . . . . . . . . Self-Inflicted Damage 236 | . . . . . . . . . . . . . . . . . . . . . . . . . . 234 . . . . . 2 Shots 4 | . . . . . . . . . . . . . . . . . . . . . . . . . . 4 . . . . . . Rammed 1 | . . . . . . . . . . . . . . . . . . . . . . . . . . . . . . . . 1 Targets Rammed 2 | . . . . . 1 . . . . . . . . . . . . . . . . . . . . . . . . . . 1 Kicked 1 | . . . . . 1 . . . . . . . . . . . . . . . . . . . . . . . . . . . Crushed . | . . . . . . . . . . . . . . . . . . . . . . . . . . . . . . . . . Highest Temperature 440 | . 1 . . . 235 145 . 7 . 232 186 84 126 84 . 153 440 . . . . 3 7 . . 2 . 1 . . 108 108 Average Temperature 47 | . 1 . . . 61 73 . 3 . 67 84 42 58 40 . 58 39 . . . . 3 4 . . 2 . 1 . . 26 34 Received Heat Transfer 909 | . 48 . . 66 216 124 . . . 228 6 6 . . . 27 48 . . . . 9 29 12 . 43 4 39 . . 4 . Siege Activations . | . . . . . . . . . . . . . . . . . . . . . . . . . . . . . . . . . Robots Corrupted . | . . . . . . . . . . . . . . . . . . . . . . . . . . . . . . . . . Combat Hostiles . | . . . . . . . . . . . . . . . . . . . . . . . . . . . . . . . . . Parts Fried 1 | . . . . . . . . . . . . . . . . . . . . . . . . . . . . 1 . . . . Impact Corruptions . | . . . . . . . . . . . . . . . . . . . . . . . . . . . . . . . . . Robots Melted 10 | . 1 . . . 2 3 . . . . . . . . . . . . . . . . 1 . . . 1 1 . . 1 . Combat Hostiles 8 | . 1 . . . 2 2 . . . . . . . . . . . . . . . . 1 . . . 1 . . . 1 . Parts Melted 111 | . 2 . . . 17 7 . . . 21 . 1 1 2 . . 8 . . . . 2 3 1 . 8 3 20 . 2 10 3 Heat Transferred 42507 | 75 1473 . . 1463 4847 4218 148 555 . 2782 333 1258 481 296 . 629 2035 . . . . 851 2627 2072 185 3126 777 5681 . 962 3228 2405 Parts Sabotaged . | . . . . . . . . . . . . . . . . . . . . . . . . . . . . . . . . . Parts Stolen . | . . . . . . . . . . . . . . . . . . . . . . . . . . . . . . . . . Parts Stripped . | . . . . . . . . . . . . . . . . . . . . . . . . . . . . . . . . . Power Chain Reactions 1 | . . . . . . . . . . . . . . . . . . . . . . . . . . 1 . . . . . . Missiles Intercepted . | . . . . . . . . . . . . . . . . . . . . . . . . . . . . . . . . . Alert | -11 -10 -10 -10 -9 -8 -7 -7 -7 -7 -7 -6 -6 -6 -6 -6 -5 -5 -5 -5 -5 -4 -4 -4 -4 -4 -4 -3 -3 -3 -2 -2 -2 ------- Run | Scr Mat Min Exi Min Mat Fac Low Low Zio Dee Pro Fac Low Low Dat Pro Fac Upp Upp War Pro Fac Ext Cet Arc Hub Res Arm Lab Res Tes Sec Peak Influence 1609 | 10 176 . . 25 329 289 . . . . . 235 . . . . 261 . . . . 129 313 579 84 1609 673 1114 . 193 474 554 Initial 627 | . 4 . . . . 16 . . . . . 24 . . . . 25 . . . . . 46 107 78 19 627 104 . . 79 38 Average 194 | 7 54 . . 7 134 99 . . . . . 121 . . . . 122 . . . . 61 145 290 81 574 343 494 . 57 171 321 Maximum Alert Level 5 | . . . . . 1 1 . . . . . 1 . . . . 1 . . . . . 1 2 . 5 2 4 . 1 2 2 Low Security (%) 64 | 100 100 100 . 100 71 87 . . . . . 80 . . . . 81 . . . . 100 65 7 100 22 21 18 . 99 67 31 Level 1 21 | . . . . . 28 12 . . . . . 19 . . . . 18 . . . . . 34 67 . 10 46 30 . . 24 26 Level 2 9 | . . . . . . . . . . . . . . . . . . . . . . . . 24 . 31 32 22 . . 8 42 Level 3 3 | . . . . . . . . . . . . . . . . . . . . . . . . . . 21 . 26 . . . . Level 4 . | . . . . . . . . . . . . . . . . . . . . . . . . . . 13 . 2 . . . . Level 5 . | . . . . . . . . . . . . . . . . . . . . . . . . . . . . . . . . . High Security . | . . . . . . . . . . . . . . . . . . . . . . . . . . . . . . . . . Max Security . | . . . . . . . . . . . . . . . . . . . . . . . . . . . . . . . . . Squads Dispatched 36 | . . . . . 3 3 . . . . . 2 . . . . 2 . . . . 1 . . . 7 . 3 . . 5 10 Investigation 7 | . . . . . 1 2 . . . . . . . . . . 1 . . . . 1 . . . 2 . . . . . . Extermination 4 | . . . . . . . . . . . . . . . . . . . . . . . . . . 1 . 1 . . 1 1 Reinforcement 18 | . . . . . 2 1 . . . . . 2 . . . . 1 . . . . . . . . 3 . . . . 4 5 Assault 3 | . . . . . . . . . . . . . . . . . . . . . . . . . . 1 . 2 . . . . Garrison 1 | . . . . . . . . . . . . . . . . . . . . . . . . . . . . . . . . 1 Intercept 3 | . . . . . . . . . . . . . . . . . . . . . . . . . . . . . . . . 3 Searches Triggered 1 | . . . . . . . . . . . . . . . . . . . . . . . . . . . . . . . . 1 Data Miner Redirects 3 | . . . . . . . . . . . . . . . . . 1 . . . . 1 . . . 1 . . . . . . Construction Impeded 2 | . . . . . . . . . . . . . . . . . 1 . . . . . . . . . . . . . . 1 Haulers Reinforced 5 | . . . . . . . . . . . . 1 . . . . . . . . . . . . . 2 . . . . 1 1 Active Scanning Responses . | . . . . . . . . . . . . . . . . . . . . . . . . . . . . . . . . . Cargo Convoy Interrupts . | . . . . . . . . . . . . . . . . . . . . . . . . . . . . . . . . . Stealth | -11 -10 -10 -10 -9 -8 -7 -7 -7 -7 -7 -6 -6 -6 -6 -6 -5 -5 -5 -5 -5 -4 -4 -4 -4 -4 -4 -3 -3 -3 -2 -2 -2 --------- Run | Scr Mat Min Exi Min Mat Fac Low Low Zio Dee Pro Fac Low Low Dat Pro Fac Upp Upp War Pro Fac Ext Cet Arc Hub Res Arm Lab Res Tes Sec Distress Signals 17 | . . . . 2 2 1 . . . . . . . . . . . . . . . . 1 2 . 5 . 1 . 1 1 1 Communications Jammed 26 | . . . . . . . . . . . . . . . . . . . . . . . . . . . 1 15 . 1 9 . Distress Signals 26 | . . . . . . . . . . . . . . . . . . . . . . . . . . . 1 15 . 1 9 . Times Spotted 334 | . 14 . . 13 34 20 1 3 . 12 3 10 5 2 . 4 12 3 2 . . 7 14 16 . 46 4 34 . 8 17 50 Peak Tracking Total 23 | . 4 . . 3 6 3 1 3 . 5 3 3 3 2 . 2 3 3 2 . . 5 6 5 . 18 2 4 . 3 3 23 Tactical Retreats 17 | . . . . . . 1 . . . . 1 . . . . . . . . . . . 1 . . 7 . . . . . 7 Traps | -11 -10 -10 -10 -9 -8 -7 -7 -7 -7 -7 -6 -6 -6 -6 -6 -5 -5 -5 -5 -5 -4 -4 -4 -4 -4 -4 -3 -3 -3 -2 -2 -2 ------- Run | Scr Mat Min Exi Min Mat Fac Low Low Zio Dee Pro Fac Low Low Dat Pro Fac Upp Upp War Pro Fac Ext Cet Arc Hub Res Arm Lab Res Tes Sec Traps Triggered 10 | . 1 . . . . 2 . . . . . . . . . . 1 . . . . . . . . 4 . 2 . . . . Indirectly 2 | . . . . . . . . . . . . . . . . . . . . . . . . . . 2 . . . . . . Trap Hack Attempts . | . . . . . . . . . . . . . . . . . . . . . . . . . . . . . . . . . Triggered . | . . . . . . . . . . . . . . . . . . . . . . . . . . . . . . . . . Disarmed 15 | . . . . . . . . . . . . 6 . . . . . . . . . . . . . . . 8 . . 1 . Reprogrammed 19 | . . . . . . . . . . . . . . . . . . . . . . . . . . . . 6 . . 5 8 Reused 1 | . . . . . . . . . . . . . . . . . . . . . . . . . . . . . . . . 1 Traps Extracted . | . . . . . . . . . . . . . . . . . . . . . . . . . . . . . . . . . Installed . | . . . . . . . . . . . . . . . . . . . . . . . . . . . . . . . . . Triggered 9 | . . . . 1 . . . . . . . . . . . . . . . 7 . . . . . . . . . . . 1 Machines | -11 -10 -10 -10 -9 -8 -7 -7 -7 -7 -7 -6 -6 -6 -6 -6 -5 -5 -5 -5 -5 -4 -4 -4 -4 -4 -4 -3 -3 -3 -2 -2 -2 ---------- Run | Scr Mat Min Exi Min Mat Fac Low Low Zio Dee Pro Fac Low Low Dat Pro Fac Upp Upp War Pro Fac Ext Cet Arc Hub Res Arm Lab Res Tes Sec Machines Disabled 69 | . . . . . . . 1 . . . . 1 . . . . 2 . . . . . 3 5 . 32 1 8 . . 9 7 Max in Single Turn 12 | . . . . . . . 1 . . . . 1 . . . . 1 . . . . . 1 2 . 12 1 1 . . 1 1 Garrison Access 4 | . . . . . . 1 . . . . . 1 . . . . . . . . . . . . . 1 . . . . . 1 Network Hub 4 | . . . . . . . . . . . . . . . . . . . . . . . . . . 4 . . . . . . Machines Sabotaged . | . . . . . . . . . . . . . . . . . . . . . . . . . . . . . . . . . Garrisons Compromised . | . . . . . . . . . . . . . . . . . . . . . . . . . . . . . . . . . Overloaded Fab Kills . | . . . . . . . . . . . . . . . . . . . . . . . . . . . . . . . . . Hacking | -11 -10 -10 -10 -9 -8 -7 -7 -7 -7 -7 -6 -6 -6 -6 -6 -5 -5 -5 -5 -5 -4 -4 -4 -4 -4 -4 -3 -3 -3 -2 -2 -2 --------- Run | Scr Mat Min Exi Min Mat Fac Low Low Zio Dee Pro Fac Low Low Dat Pro Fac Upp Upp War Pro Fac Ext Cet Arc Hub Res Arm Lab Res Tes Sec Machines Accessed 76 | . 2 . . . 2 5 . 2 . . . 3 . 1 4 . 5 . . 5 . 1 3 1 1 9 4 8 . 2 11 7 Terminals 54 | . 2 . . . 2 3 . 1 . . . 2 . . . . 5 . . . . 1 3 1 . 8 4 5 . 2 9 6 Fabricators 6 | . . . . . . 1 . . . . . . . . . . . . . . . . . . . . . 3 . . 2 . Repair Stations . | . . . . . . . . . . . . . . . . . . . . . . . . . . . . . . . . . Recycling Units . | . . . . . . . . . . . . . . . . . . . . . . . . . . . . . . . . . Scanalyzers . | . . . . . . . . . . . . . . . . . . . . . . . . . . . . . . . . . Garrison Access 4 | . . . . . . 1 . . . . . 1 . . . . . . . . . . . . . 1 . . . . . 1 Total Hacks 318 | . 5 . . . 6 13 . 2 . . . 12 . 1 29 . 14 . . 12 . 2 6 3 25 23 17 68 . 7 47 26 Successful 196 | . 3 . . . 3 8 . 2 . . . 9 . 1 29 . 4 . . 12 . 1 1 1 25 10 10 37 . 2 27 11 Failed 122 | . 2 . . . 3 5 . . . . . 3 . . . . 10 . . . . 1 5 2 . 13 7 31 . 5 20 15 Catastrophic 20 | . . . . . . . . . . . . 1 . . . . 1 . . . . . 2 . . . 3 1 . 2 8 2 Database Lockouts . | . . . . . . . . . . . . . . . . . . . . . . . . . . . . . . . . . Manual 135 | . 5 . . . 5 6 1 . 5 . . 5 . . . . 7 . . 1 . 2 6 1 . 11 3 37 6 7 17 10 Terminals 220 | . 5 . . . 6 10 . 1 . . . 11 . . . . 14 . . . . 2 6 3 . 21 17 54 . 7 38 25 Fabricators 24 | . . . . . . 1 . . . . . . . . . . . . . . . . . . . . . 14 . . 9 . Repair Stations . | . . . . . . . . . . . . . . . . . . . . . . . . . . . . . . . . . Recycling Units . | . . . . . . . . . . . . . . . . . . . . . . . . . . . . . . . . . Scanalyzers . | . . . . . . . . . . . . . . . . . . . . . . . . . . . . . . . . . Garrison Access 6 | . . . . . . 2 . . . . . 1 . . . . . . . . . . . . . 2 . . . . . 1 Terminal Hacks 169 | . 3 . . . 3 6 . 2 . . . 8 . 1 29 . 4 . . 12 . 1 1 1 25 9 9 27 . 1 20 7 Record 47 | . . . . . . . . 1 . . . . . . 11 . . . . 10 . . . . 25 . . . . . . . Part Schematic 13 | . 1 . . . . . . . . . . . . . 11 . . . . . . . . . . . . 1 . . . . Robot Schematic 4 | . . . . . . . . . . . . . . . 4 . . . . . . . . . . . . . . . . . Prototype ID Bank 22 | . . . . . . 1 . . . . . 1 . . 3 . . . . . . . . . . . 1 14 . . 2 . Open Door 6 | . . . . . . . . 1 . . . . . 1 . . . . . 2 . . . 1 . . . . . . 1 . Level Access Points 2 | . . . . . . . . . . . . . . . . . . . . . . . . . . 1 . . . . 1 . Branch Access Points 6 | . . . . . . . . . . . . 2 . . . . 1 . . . . 1 . . . . 1 . . 1 . . Emergency Access Points 6 | . . . . . . . . . . . . 1 . . . . . . . . . . . . . . 1 1 . . 2 1 Machine Index 1 | . . . . . . . . . . . . . . . . . . . . . . . . . . . . 1 . . . . Terminal Index 1 | . . . . . . . . . . . . . . . . . . . . . . . . . . . . . . . . 1 Garrison Index 1 | . . . . . . . . . . . . . . . . . . . . . . . . . . . . . . . 1 . Unreport Threat 31 | . 2 . . . 2 4 . . . . . 2 . . . . 3 . . . . . 1 . . 5 4 2 . . 4 2 Locate Traps 9 | . . . . . 1 1 . . . . . . . . . . . . . . . . . . . 2 2 1 . . 2 . Disarm Traps 7 | . . . . . . . . . . . . 2 . . . . . . . . . . . . . . . 4 . . 1 . Reprogram Traps 7 | . . . . . . . . . . . . . . . . . . . . . . . . . . . . 1 . . 3 3 Recall Reinforcements 1 | . . . . . . . . . . . . . . . . . . . . . . . . . . 1 . . . . . . Registered Components 1 | . . . . . . . . . . . . . . . . . . . . . . . . . . . . 1 . . . . Zone Layout 2 | . . . . . . . . . . . . . . . . . . . . . . . . . . . . 1 . . 1 . Protovariant Controls 2 | . . . . . . . . . . . . . . . . . . . . . . . . . . . . . . . 2 . Fabricator Hacks 10 | . . . . . . . . . . . . . . . . . . . . . . . . . . . . 6 . . 4 . Load Schematic 5 | . . . . . . . . . . . . . . . . . . . . . . . . . . . . 3 . . 2 . Build 5 | . . . . . . . . . . . . . . . . . . . . . . . . . . . . 3 . . 2 . Repair Station Hacks . | . . . . . . . . . . . . . . . . . . . . . . . . . . . . . . . . . Recycling Unit Hacks . | . . . . . . . . . . . . . . . . . . . . . . . . . . . . . . . . . Scanalyzer . | . . . . . . . . . . . . . . . . . . . . . . . . . . . . . . . . . Garrison Access Hacks 4 | . . . . . . 1 . . . . . 1 . . . . . . . . . . . . . 1 . . . . . 1 Seal Access 4 | . . . . . . 1 . . . . . 1 . . . . . . . . . . . . . 1 . . . . . 1 Unauthorized Hacks 13 | . . . . . . 1 . . . . . . . . . . . . . . . . . . . . 1 4 . 1 3 3 Terminals 7 | . . . . . . . . . . . . . . . . . . . . . . . . . . . 1 1 . 1 1 3 Assimilate 5 | . . . . . . . . . . . . . . . . . . . . . . . . . . . 1 1 . 1 1 1 Botnet 1 | . . . . . . . . . . . . . . . . . . . . . . . . . . . . . . . . 1 Disrupt 1 | . . . . . . . . . . . . . . . . . . . . . . . . . . . . . . . . 1 Fabricators 6 | . . . . . . 1 . . . . . . . . . . . . . . . . . . . . . 3 . . 2 . Liberate 6 | . . . . . . 1 . . . . . . . . . . . . . . . . . . . . . 3 . . 2 . Repair Stations . | . . . . . . . . . . . . . . . . . . . . . . . . . . . . . . . . . Recycling Units . | . . . . . . . . . . . . . . . . . . . . . . . . . . . . . . . . . Scanalyzers . | . . . . . . . . . . . . . . . . . . . . . . . . . . . . . . . . . Garrison Access . | . . . . . . . . . . . . . . . . . . . . . . . . . . . . . . . . . Data Cores Recovered 8 | . . . . . . 1 . . . . . . . . . . 2 . . . . . 1 . . . . 2 . . 2 . Used 5 | . . . . . . 1 . . . . . . . . . . 1 . . . . . 1 . . . . 1 . . 1 . Hacking Detections 51 | . 1 . . . 2 3 . . . . . 1 . . . . 5 . . . . 1 3 1 . 9 3 8 . 1 8 5 Full Trace Events 7 | . . . . . 1 2 . . . . . . . . . . 1 . . . . 1 . . . 2 . . . . . . Feedback Events . | . . . . . . . . . . . . . . . . . . . . . . . . . . . . . . . . . Feedback Blocked . | . . . . . . . . . . . . . . . . . . . . . . . . . . . . . . . . . Robot Schematics Acquired 11 | . . . . . . . . . 4 . . . . . 4 . . . . . . . . . . . . . . . 1 2 Robots Built 10 | . . . . . . . . . . . . . . . . . . . . . . . . . . . . 6 . . 4 . Authchips . | . . . . . . . . . . . . . . . . . . . . . . . . . . . . . . . . . Time 497 | . . . . . . . . . . . . . . . . . . . . . . . . . . . . 217 . . 280 . Total Robot Build Rating 70 | . . . . . . . . . . . . . . . . . . . . . . . . . . . . 42 . . 28 . Part Schematics Acquired 42 | . 1 . . . . . . . 14 . . . . . 11 . . . . . . . . . . . . 1 . . 9 6 Parts Built . | . . . . . . . . . . . . . . . . . . . . . . . . . . . . . . . . . Authchips . | . . . . . . . . . . . . . . . . . . . . . . . . . . . . . . . . . Time . | . . . . . . . . . . . . . . . . . . . . . . . . . . . . . . . . . Total Part Build Rating . | . . . . . . . . . . . . . . . . . . . . . . . . . . . . . . . . . Parts Repaired . | . . . . . . . . . . . . . . . . . . . . . . . . . . . . . . . . . Time . | . . . . . . . . . . . . . . . . . . . . . . . . . . . . . . . . . Parts Recycled . | . . . . . . . . . . . . . . . . . . . . . . . . . . . . . . . . . Recycled Matter . | . . . . . . . . . . . . . . . . . . . . . . . . . . . . . . . . . Retrieved Matter . | . . . . . . . . . . . . . . . . . . . . . . . . . . . . . . . . . Retrieved Components . | . . . . . . . . . . . . . . . . . . . . . . . . . . . . . . . . . Parts Scanalyzed . | . . . . . . . . . . . . . . . . . . . . . . . . . . . . . . . . . Part Schematics Acquired . | . . . . . . . . . . . . . . . . . . . . . . . . . . . . . . . . . Parts Damaged . | . . . . . . . . . . . . . . . . . . . . . . . . . . . . . . . . . Bothacking | -11 -10 -10 -10 -9 -8 -7 -7 -7 -7 -7 -6 -6 -6 -6 -6 -5 -5 -5 -5 -5 -4 -4 -4 -4 -4 -4 -3 -3 -3 -2 -2 -2 ------------ Run | Scr Mat Min Exi Min Mat Fac Low Low Zio Dee Pro Fac Low Low Dat Pro Fac Upp Upp War Pro Fac Ext Cet Arc Hub Res Arm Lab Res Tes Sec Used RIF Installer . | . . . . . . . . . . . . . . . . . . . . . . . . . . . . . . . . . Robots Hacked . | . . . . . . . . . . . . . . . . . . . . . . . . . . . . . . . . . Non-combat . | . . . . . . . . . . . . . . . . . . . . . . . . . . . . . . . . . Combat . | . . . . . . . . . . . . . . . . . . . . . . . . . . . . . . . . . Robot Hacks Applied . | . . . . . . . . . . . . . . . . . . . . . . . . . . . . . . . . . Relay Couplers Released . | . . . . . . . . . . . . . . . . . . . . . . . . . . . . . . . . . Fabnet Peak Effective % . | . . . . . . . . . . . . . . . . . . . . . . . . . . . . . . . . . Robots Rewired 6 | . . . . . . . . . . . . . . . . . 1 . . . . . . . . . . 5 . . . . Allies Hacked 6 | . . . . . . . . . . . . . . . . . . . . . . . . . . . . 6 . . . . Hacks Repelled . | . . . . . . . . . . . . . . . . . . . . . . . . . . . . . . . . . Allies | -11 -10 -10 -10 -9 -8 -7 -7 -7 -7 -7 -6 -6 -6 -6 -6 -5 -5 -5 -5 -5 -4 -4 -4 -4 -4 -4 -3 -3 -3 -2 -2 -2 -------- Run | Scr Mat Min Exi Min Mat Fac Low Low Zio Dee Pro Fac Low Low Dat Pro Fac Upp Upp War Pro Fac Ext Cet Arc Hub Res Arm Lab Res Tes Sec Total Allies 45 | . . 4 . . . . . . . . . . . . . 1 4 . . . . . 9 5 . . 1 12 2 1 5 1 Largest Group 8 | . . 4 4 4 . . . . . . . . . . . 1 3 1 . . . . 5 8 8 7 1 8 2 3 3 2 Highest-Rated Group 717 | . . 71 71 71 . . . . . . . . . . . 96 96 65 . . . . 318 717 710 551 45 483 192 218 162 136 Highest-Rated Ally 159 | . . 31 31 31 . . . . . . . . . . . 96 96 65 . . . . 159 159 159 96 45 68 96 96 68 68 Total Orders 4 | . . . . . . . . . . . . . . . . . 1 . . . . . . . . . . 3 . . . . AID 4 | . . . . . . . . . . . . . . . . . 1 . . . . . . . . . . 3 . . . . Ally Attacks 248 | . . . . 19 . . . . . . . . . . . 4 12 . . . . . 17 55 . 52 . 31 . 15 38 5 Total Damage 10273 | . . . . 137 . . . . . . . . . . . 351 151 . . . . . 430 1854 . 2183 . 2406 . 520 1843 398 Kills 52 | . . . . 3 . . . . . . . . . . . 2 4 . . . . . 1 8 . 10 . 14 . 2 7 1 Allies Corrupted 5 | . . . . . . . . . . . . . . . . . . . . . . . . . . 1 . 2 . 2 . . Allies Melted . | . . . . . . . . . . . . . . . . . . . . . . . . . . . . . . . . . Intel | -11 -10 -10 -10 -9 -8 -7 -7 -7 -7 -7 -6 -6 -6 -6 -6 -5 -5 -5 -5 -5 -4 -4 -4 -4 -4 -4 -3 -3 -3 -2 -2 -2 ------- Run | Scr Mat Min Exi Min Mat Fac Low Low Zio Dee Pro Fac Low Low Dat Pro Fac Upp Upp War Pro Fac Ext Cet Arc Hub Res Arm Lab Res Tes Sec Robot Analysis Total . | . . . . . . . . . . . . . . . . . . . . . . . . . . . . . . . . . Derelict Logs Recovered 11 | . . 1 . . . . . 1 2 . 1 . 2 . . 1 . 1 . . 2 . . . . . . . . . . . Drone Launches . | . . . . . . . . . . . . . . . . . . . . . . . . . . . . . . . . . Drone Recoveries . | . . . . . . . . . . . . . . . . . . . . . . . . . . . . . . . . . Exploration | -11 -10 -10 -10 -9 -8 -7 -7 -7 -7 -7 -6 -6 -6 -6 -6 -5 -5 -5 -5 -5 -4 -4 -4 -4 -4 -4 -3 -3 -3 -2 -2 -2 ------------- Run | Scr Mat Min Exi Min Mat Fac Low Low Zio Dee Pro Fac Low Low Dat Pro Fac Upp Upp War Pro Fac Ext Cet Arc Hub Res Arm Lab Res Tes Sec Turns Passed 8769 | 106 539 187 166 378 828 616 147 150 276 561 68 244 118 84 31 427 239 68 23 203 66 102 375 436 45 353 191 570 99 170 566 337 Spaces Moved 13332 | 82 386 156 134 214 562 1080 311 250 735 977 138 324 229 179 78 207 532 289 112 681 322 240 553 293 57 767 456 837 74 533 916 628 Core 32 | 20 . . . . . . . . . . . . . . . . . . . . . . . . . . . . . . . 12 Treads . | . . . . . . . . . . . . . . . . . . . . . . . . . . . . . . . . . Legs 1358 | 62 386 156 134 214 406 . . . . . . . . . . . . . . . . . . . . . . . . . . . Wheels . | . . . . . . . . . . . . . . . . . . . . . . . . . . . . . . . . . Hover 11942 | . . . . . 156 1080 311 250 735 977 138 324 229 179 78 207 532 289 112 681 322 240 553 293 57 767 456 837 74 533 916 616 Flight . | . . . . . . . . . . . . . . . . . . . . . . . . . . . . . . . . . Fastest Speed 20 | 50 120 120 120 120 42 40 36 36 36 20 40 40 40 40 40 20 20 20 20 20 20 20 20 20 20 20 20 20 20 20 20 20 Average Speed 36 | 102 120 120 120 120 99 40 37 36 36 37 40 40 40 40 40 20 20 20 20 20 20 20 20 20 20 20 20 20 20 20 20 25 Slowest Speed 275 | 120 120 120 120 120 190 42 40 36 36 44 40 40 40 40 40 40 20 20 20 21 20 20 20 20 20 20 20 20 20 20 20 275 Overloaded Moves . | . . . . . . . . . . . . . . . . . . . . . . . . . . . . . . . . . Propulsion Burnouts . | . . . . . . . . . . . . . . . . . . . . . . . . . . . . . . . . . Robots Hopped . | . . . . . . . . . . . . . . . . . . . . . . . . . . . . . . . . . Cave-ins Triggered . | . . . . . . . . . . . . . . . . . . . . . . . . . . . . . . . . . Exploration Rate (%) 48 | 4 80 30 52 45 52 31 39 41 87 80 43 11 42 38 72 44 18 58 37 93 56 7 78 77 71 77 16 80 6 17 92 40 Regions Visited 32 Branch Regions 24 Pre-discovered Areas 9 | . . . . . . . . 1 2 . . . 1 . 1 1 . . . 2 1 . . . . . . . . . . . Known Exits Taken 32 | 1 1 1 1 1 1 1 1 1 1 1 1 1 1 1 1 1 1 1 1 1 1 1 1 1 1 1 1 1 1 1 1 . Unknown Exits Taken . | . . . . . . . . . . . . . . . . . . . . . . . . . . . . . . . . . Scrap Searched 17 | . . . . 2 . . 1 3 2 . 4 . 1 . . 1 . 2 . . 1 . . . . . . . . . . . Spaces Dug 210 | . . . . . . . . . . . . . . . . . . . . . . 4 . . . 184 4 . 1 . 4 13 Terrain Destroyed 828 | . . . . . . . . . . 2 . 5 2 1 . 1 11 . . . . 5 21 3 . 705 5 20 1 4 20 22 Melee . | . . . . . . . . . . . . . . . . . . . . . . . . . . . . . . . . . Projectile 159 | . . . . . . . . . . 2 . 5 2 1 . 1 11 . . . . 5 21 3 . 36 5 20 1 4 20 22 AOE 669 | . . . . . . . . . . . . . . . . . . . . . . . . . . 669 . . . . . . Terrain Rammed . | . . . . . . . . . . . . . . . . . . . . . . . . . . . . . . . . . Walls Destroyed . | . . . . . . . . . . . . . . . . . . . . . . . . . . . . . . . . . Machines Disabled . | . . . . . . . . . . . . . . . . . . . . . . . . . . . . . . . . . Actions | -11 -10 -10 -10 -9 -8 -7 -7 -7 -7 -7 -6 -6 -6 -6 -6 -5 -5 -5 -5 -5 -4 -4 -4 -4 -4 -4 -3 -3 -3 -2 -2 -2 --------- Run | Scr Mat Min Exi Min Mat Fac Low Low Zio Dee Pro Fac Low Low Dat Pro Fac Upp Upp War Pro Fac Ext Cet Arc Hub Res Arm Lab Res Tes Sec Total 16010 | 94 416 156 139 278 711 1170 338 298 743 1108 143 404 244 185 77 575 613 298 111 747 323 271 747 621 84 862 535 1085 150 572 1190 722 Wait 1477 | . . . 6 29 2 4 10 32 8 13 3 40 9 . . 355 22 10 . 45 . 8 136 284 21 18 24 138 74 7 163 16 Move 13299 | 81 385 155 133 213 561 1079 310 249 734 976 137 323 228 178 77 206 531 288 111 680 321 239 551 292 56 766 455 836 73 532 915 628 Hop . | . . . . . . . . . . . . . . . . . . . . . . . . . . . . . . . . . Pick Up 73 | . 1 1 . . 5 4 2 1 . 9 . 2 1 1 . 2 8 . . 2 1 2 7 1 . 4 3 4 . 2 8 2 Fast Attach 117 | 8 1 . . . 12 8 5 1 . 24 . . . . . . 4 . . 9 . 1 1 4 . 2 6 . . 6 15 10 Attach 25 | . . . . . 5 1 . . . 2 . 1 . . . 1 2 . . . . . 1 . . 2 6 . . 2 1 1 Detach 29 | . . . . . 9 2 . . . 7 . . . . . . 1 . . . . . . . . . 7 . . 2 1 . Swap 28 | . . . . 3 5 3 . . . 3 . 1 . . . . . . . . . . 3 1 . 2 1 3 . 1 1 1 Drop 160 | . . . . 2 16 12 6 2 . 33 . 2 1 1 . 1 8 . . 11 1 2 7 5 . 5 6 2 . 7 21 9 Fire 548 | 5 25 . . 28 55 40 3 5 1 29 3 15 5 3 . 7 25 . . . . 10 32 22 5 46 10 69 3 11 50 41 Melee . | . . . . . . . . . . . . . . . . . . . . . . . . . . . . . . . . . Ram 1 | . . . . . . . . . . . . . . . . . . . . . . . . . . . . . . . . 1 Kick 1 | . . . . . 1 . . . . . . . . . . . . . . . . . . . . . . . . . . . Crush . | . . . . . . . . . . . . . . . . . . . . . . . . . . . . . . . . . Escape Stasis 8 | . . . . . . . . . . . . . . . . . . . . . . . 1 . . 7 . . . . . . Rewire 23 | . . . . . . . . . . . . . . . . . 1 . . . . . . . 2 . . 20 . . . . Trap . | . . . . . . . . . . . . . . . . . . . . . . . . . . . . . . . . . Miscellaneous 221 | . 4 . . 3 40 17 2 8 . 12 . 20 . 2 . 3 11 . . . . 9 8 12 . 10 17 13 . 2 15 13 Route ------- -11/Scrapyard -10/Materials (discovered 3 exits: *Mat x2 / *Min) -10/Mines (discovered 2 exits: *Mat / *Exi) -10/Exiles (discovered 2 exits: *Min x2) -9/Mines -8/Materials (discovered 2 exits: *Fac x2) -7/Factory -7/Lower Caves -7/Lower Caves (discovered 2 exits: *Fac / *Zio) -7/Zion (discovered 2 exits: *Dee / *Pro) -7/Deep Caves -6/Proximity Caves -6/Factory (discovered 2 exits: *Low x2) -6/Lower Caves -6/Lower Caves (discovered 2 exits: Fac / *Dat) -6/Data Miner -5/Proximity Caves -5/Factory (discovered 3 exits: Fac / *Upp x2) -5/Upper Caves -5/Upper Caves -5/Warlord -4/Proximity Caves -4/Factory (discovered 4 exits: Upp x2 / *Ext x2) -4/Extension (discovered 3 exits: *Res x2 / *Cet) -4/Cetus (discovered 2 exits: *Res / *Arc) -4/Archives (discovered 2 exits: *Hub x2) -4/Hub_04(d) (discovered 4 exits: *Res x4) -3/Research (discovered 4 exits: *Res / *Arm / Qua x2) -3/Armory (discovered 2 exits: Res / *Lab) -3/Lab -2/Research (discovered 2 exits: *Tes x2) -2/Testing (discovered 2 exits: *Acc / *Sec) -2/Section 7 (discovered 1 exit: *Acc) History --------- Turn | Location | Event 3 | -11/Scrapyard | Identified exit to Materials 3 | -11/Scrapyard | Discovered exit to Materials (range 16) 6 | -11/Scrapyard | Upgraded with Propulsion slot (x2) 6 | -11/Scrapyard | Upgraded with Utility slot (x2) 6 | -11/Scrapyard | Upgraded with Weapon slot (x1) 107 | -11/Scrapyard | Entered Materials 211 | -10/Materials | Identified exit to Materials 211 | -10/Materials | Discovered exit to Materials (range 5) 317 | -10/Materials | Build established: Hacker-Skirmisher 359 | -10/Materials | Identified exit to Mines 359 | -10/Materials | Discovered exit to Mines (range 13) 432 | -10/Materials | Discovered exit to Materials (range 12) 646 | -10/Materials | Entered Mines 651 | -10/Mines | Assisted by bots powering up and referring to "LRC-V3" 745 | -10/Mines | Learned Materials trap positions 768 | -10/Mines | Discovered exit to Materials (range 15) 784 | -10/Mines | Received a Mining Laser from a helpful Derelict 794 | -10/Mines | Identified exit to Exiles 794 | -10/Mines | Discovered exit to Exiles (range 12) 827 | -10/Mines | Deemed a non-threat by the Exiles lab entrance 833 | -10/Mines | Entered Exiles 833 | -10/Exiles | Accompanied by 4 allies 835 | -10/Exiles | Reached level 2 849 | -10/Exiles | Identified exit to Mines 849 | -10/Exiles | Discovered exit to Mines (range 15) 866 | -10/Exiles | Met 8R-AWN 883 | -10/Exiles | Met EX-HEX 929 | -10/Exiles | Met EX-DEC 982 | -10/Exiles | Discovered exit to Mines (range 10) 999 | -10/Exiles | Entered Mines 999 | -9/Mines | Accompanied by 4 allies 1000 | -9/Mines | Assembled infested the area 1251 | -9/Mines | Core integrity fell below 50% 1307 | -9/Mines | Identified exit to Materials 1307 | -9/Mines | Discovered exit to Materials (range 16) 1377 | -9/Mines | Entered Materials 1378 | -8/Materials | Loaded intel: 13 trap records 1378 | -8/Materials | Core integrity fell below 50% 1379 | -8/Materials | Reached level 3 1379 | -8/Materials | Reached level 4 1379 | -8/Materials | Reached level 5 1379 | -8/Materials | Reached level 6 1446 | -8/Materials | Upgraded with Propulsion slot (x1) 1446 | -8/Materials | Upgraded with Weapon slot (x1) 1525 | -8/Materials | Reached level 7 1605 | -8/Materials | Upgraded with Power slot (x1) 1761 | -8/Materials | Identified exit to Factory 1761 | -8/Materials | Discovered exit to Factory (range 14) 1946 | -8/Materials | Reached level 8 2145 | -8/Materials | Upgraded with Propulsion slot (x1) 2197 | -8/Materials | Discovered exit to Factory (range 6) 2205 | -8/Materials | Entered Factory 2207 | -7/Factory | Reached level 9 2207 | -7/Factory | Reached level 10 2209 | -7/Factory | Upgraded with Utility slot (x2) 2294 | -7/Factory | Reached level 11 2375 | -7/Factory | Build established: Hacker-Scout 2761 | -7/Factory | Identified exit to Lower Caves 2761 | -7/Factory | Discovered exit to Lower Caves (range 4) 2821 | -7/Factory | Entered Lower Caves 2823 | -7/Lower Caves | Reached level 12 2824 | -7/Lower Caves | Upgraded with Power slot (x1) 2824 | -7/Lower Caves | Upgraded with Propulsion slot (x1) 2906 | -7/Lower Caves | Acquired the password to a Derelict Tinkerer's latest research 2908 | -7/Lower Caves | Found Prototype Special Weapon 2908 | -7/Lower Caves | Identified Molecular Deconstructor 2962 | -7/Lower Caves | Identified exit to Lower Caves 2962 | -7/Lower Caves | Discovered exit to Lower Caves (range 18) 2968 | -7/Lower Caves | Entered another Lower Caves area 2973 | -7/Lower Caves | Identified exit to Factory 2973 | -7/Lower Caves | Discovered exit to Factory (range 3) 3112 | -7/Lower Caves | Identified exit to Zion 3112 | -7/Lower Caves | Discovered exit to Zion (range 12) 3118 | -7/Lower Caves | Entered Zion 3120 | -7/Zion | Reached level 13 3128 | -7/Zion | Visited the Megawrench Repair Shop 3135 | -7/Zion | System corruption cleaned by Quarantine Array 3145 | -7/Zion | Identified exit to Proximity Caves 3145 | -7/Zion | Discovered exit to Proximity Caves (range 11) 3232 | -7/Zion | Learned Factory emergency access door positions 3238 | -7/Zion | Identified exit to Deep Caves 3260 | -7/Zion | Given A8's code to call for help 3281 | -7/Zion | Learned location of Warlord (-5) 3307 | -7/Zion | Learned 8 Factory zone layouts 3315 | -7/Zion | Acquired unknown access codes intercepted by a Zionite 3386 | -7/Zion | Opened final containment barrier to the Deep Caves 3393 | -7/Zion | Saw the warning signs outside the Deep Caves entrance 3394 | -7/Zion | Entered Deep Caves 3458 | -7/Deep Caves | Attacked by Z-Imprinter 3469 | -7/Deep Caves | Reached level 14 3469 | -7/Deep Caves | Destroyed Z-Imprinter 3517 | -7/Deep Caves | Found Prototype Device 3517 | -7/Deep Caves | Identified Zio. Metafield Generator 3617 | -7/Deep Caves | Found Prototype Protection 3617 | -7/Deep Caves | Identified Zio. Weapon Casing 3663 | -7/Deep Caves | Found Prototype Protection 3663 | -7/Deep Caves | Identified Zio. Heavy Carapace 3794 | -7/Deep Caves | Build established: Scavenger-Scout 3812 | -7/Deep Caves | Identified exit to Proximity Caves 3812 | -7/Deep Caves | Discovered exit to Proximity Caves (range 16) 3915 | -7/Deep Caves | Spotted as-88871 3955 | -7/Deep Caves | Entered Proximity Caves 3991 | -6/Proximity Caves | Attracted the attention of an 0b10 checkpoint 4001 | -6/Proximity Caves | Reached level 15 4008 | -6/Proximity Caves | Learned Factory trap positions 4020 | -6/Proximity Caves | Discovered exit to Factory (range 5) 4023 | -6/Proximity Caves | Entered Factory 4025 | -6/Factory | Loaded intel: 74 trap records 4025 | -6/Factory | Reached level 16 4031 | -6/Factory | Upgraded with Power slot (x1) 4049 | -6/Factory | Identified exit to Lower Caves 4267 | -6/Factory | Entered Lower Caves 4280 | -6/Lower Caves | Reached level 17 4285 | -6/Lower Caves | Learned location of Extension (-4) 4312 | -6/Lower Caves | Learned location of 1 exit from Factory 4312 | -6/Lower Caves | Spotted B-75 Beast 4361 | -6/Lower Caves | Identified exit to Lower Caves 4361 | -6/Lower Caves | Discovered exit to Lower Caves (range 12) 4385 | -6/Lower Caves | Entered another Lower Caves area 4386 | -6/Lower Caves | Identified exit to Factory 4386 | -6/Lower Caves | Discovered exit to Factory (range 9) 4465 | -6/Lower Caves | Identified exit to Data Miner 4465 | -6/Lower Caves | Discovered exit to Data Miner (range 11) 4469 | -6/Lower Caves | Entered Data Miner 4469 | -6/Data Miner | Identified exit to Proximity Caves 4469 | -6/Data Miner | Discovered exit to Proximity Caves (range 6) 4475 | -6/Data Miner | Met Data Miner 4488 | -6/Data Miner | Learned location of Section 7 (-2) 4488 | -6/Data Miner | Acquired the access code to Warlord's prototype stash 4491 | -6/Data Miner | Received God Mode back door access code from Data Miner 4500 | -6/Data Miner | Entered Proximity Caves 4502 | -5/Proximity Caves | Reached level 18 4502 | -5/Proximity Caves | Upgraded with Utility slot (x1) 4686 | -5/Proximity Caves | Received a Behemoth hack from an annoying Tinkerer 4845 | -5/Proximity Caves | Escorted by Enhanced Grunt 4870 | -5/Proximity Caves | Discovered exit to Factory (range 15) 4927 | -5/Proximity Caves | Entered Factory 4927 | -5/Factory | Accompanied by 1 ally 4928 | -5/Factory | Identified exit to Factory 4929 | -5/Factory | Reached level 19 4929 | -5/Factory | Upgraded with Utility slot (x1) 4930 | -5/Factory | Identified exit to Upper Caves 4977 | -5/Factory | Reached level 20 4978 | -5/Factory | Upgraded with Utility slot (x1) 5046 | -5/Factory | Incoming investigation squad redirected 5166 | -5/Factory | Entered Upper Caves 5166 | -5/Upper Caves | Accompanied by 1 ally 5176 | -5/Upper Caves | Encountered a Warlord checkpoint 5197 | -5/Upper Caves | Learned Factory terminal intel 5230 | -5/Upper Caves | Identified exit to Upper Caves 5230 | -5/Upper Caves | Discovered exit to Upper Caves (range 16) 5234 | -5/Upper Caves | Entered another Upper Caves area 5236 | -5/Upper Caves | Reached level 21 5255 | -5/Upper Caves | Identified exit to Warlord 5255 | -5/Upper Caves | Discovered exit to Warlord (range 11) 5257 | -5/Upper Caves | Entered Warlord 5285 | -5/Warlord | Learned location of Armory (-3) 5286 | -5/Warlord | Learned 4 Research zone layouts 5286 | -5/Warlord | Learned 4 Quarantine zone layouts 5286 | -5/Warlord | Learned 4 Command zone layouts 5286 | -5/Warlord | Learned 4 Command zone layouts 5286 | -5/Warlord | Learned Testing security intel 5286 | -5/Warlord | Learned Armory terminal intel 5286 | -5/Warlord | Learned Armory repair station intel 5286 | -5/Warlord | Learned Armory scanalyzer intel 5293 | -5/Warlord | Visited the Vortex Lab 5307 | -5/Warlord | Warlord's base attacked by MAIN.C 5327 | -5/Warlord | Met Warlord 5329 | -5/Warlord | Opened Warlord's prototype stash 5331 | -5/Warlord | Found Prototype Reactor 5331 | -5/Warlord | Identified Vortex Chain Reactor 5339 | -5/Warlord | Found Prototype Device 5339 | -5/Warlord | Identified System Purifier 5342 | -5/Warlord | Found Prototype Device 5342 | -5/Warlord | Identified Exp. Cloaking Device 5421 | -5/Warlord | Identified exit to Proximity Caves 5421 | -5/Warlord | Discovered exit to Proximity Caves (range 17) 5454 | -5/Warlord | Opened side exit 5460 | -5/Warlord | Entered Proximity Caves 5462 | -4/Proximity Caves | Reached level 22 5462 | -4/Proximity Caves | Spotted B-86 Titan 5468 | -4/Proximity Caves | Upgraded with Power slot (x1) 5507 | -4/Proximity Caves | Learned location of 1 exit from Upper Caves 5519 | -4/Proximity Caves | Discovered exit to Factory (range 15) 5526 | -4/Proximity Caves | Entered Factory 5527 | -4/Factory | Loaded intel: 28 terminal locations 5528 | -4/Factory | Reached level 23 5543 | -4/Factory | Identified exit to Upper Caves 5543 | -4/Factory | Identified exit to Extension 5561 | -4/Factory | Incoming investigation squad redirected 5628 | -4/Factory | Entered Extension 5633 | -4/Extension | Disrupted transfer network 5692 | -4/Extension | Rescued a captive Derelict 5693 | -4/Extension | Rescued a captive Derelict 5720 | -4/Extension | Rescued a captive Derelict 5721 | -4/Extension | Rescued a captive Derelict 5773 | -4/Extension | Reached level 24 5778 | -4/Extension | Upgraded with Utility slot (x1) 5843 | -4/Extension | Spotted B-86 Titan 5845 | -4/Extension | Identified exit to Research 5845 | -4/Extension | Discovered exit to Research (range 19) 5845 | -4/Extension | Spotted B-86 Titan 5918 | -4/Extension | Rescued a captive Derelict 5919 | -4/Extension | Rescued a captive Derelict 5952 | -4/Extension | Rescued a captive Derelict 5954 | -4/Extension | Rescued a captive Derelict 5962 | -4/Extension | Rescued A7 5969 | -4/Extension | Discovered exit to Research (range 10) 5969 | -4/Extension | Identified exit to Cetus 5969 | -4/Extension | Discovered exit to Cetus (range 6) 6003 | -4/Extension | Entered Cetus 6003 | -4/Cetus | Accompanied by 3 allies (A7) 6006 | -4/Cetus | Spotted Cetus Guard 6006 | -4/Cetus | Spotted Cetus Guard 6006 | -4/Cetus | Spotted Cetus Guard 6006 | -4/Cetus | Spotted Cetus Guard 6007 | -4/Cetus | Destroyed Cetus Guard 6008 | -4/Cetus | Acquired a Cetus Manufacturing Module code from A7 6023 | -4/Cetus | Destroyed Cetus Guard 6029 | -4/Cetus | Allies destroyed Cetus Guard 6036 | -4/Cetus | Destroyed Cetus Guard 6060 | -4/Cetus | Started Cetus Manufacturing Module 6085 | -4/Cetus | Manufactured an Enhanced Grunt 6110 | -4/Cetus | Manufactured an Enhanced Grunt 6135 | -4/Cetus | Manufactured an Enhanced Grunt 6160 | -4/Cetus | Manufactured an Enhanced Grunt 6185 | -4/Cetus | Manufactured an Enhanced Grunt 6278 | -4/Cetus | Cetus Manufacturing Module disabled 6298 | -4/Cetus | Reached level 25 6308 | -4/Cetus | Identified exit to Archives 6308 | -4/Cetus | Discovered exit to Archives (range 19) 6346 | -4/Cetus | Spotted Cetus Guard 6346 | -4/Cetus | Spotted Cetus Guard 6348 | -4/Cetus | Spotted Cetus Guard 6358 | -4/Cetus | Destroyed Cetus Guard 6358 | -4/Cetus | Spotted Cetus Guard 6362 | -4/Cetus | Discovered exit to Research (range 20) 6362 | -4/Cetus | Destroyed Cetus Guard 6366 | -4/Cetus | Destroyed Cetus Guard 6368 | -4/Cetus | Allies destroyed Cetus Guard 6371 | -4/Cetus | Met Revision 17 6439 | -4/Cetus | Entered Archives 6439 | -4/Archives | Accompanied by 8 allies (A7) 6442 | -4/Archives | Met Zhirov 6443 | -4/Archives | Identified exit to Hub_04(d) 6443 | -4/Archives | Discovered exit to Hub_04(d) (range 20) 6443 | -4/Archives | Discovered exit to Hub_04(d) (range 20) 6444 | -4/Archives | Read partially decrypted archive contents 6448 | -4/Archives | Reinforcements dispatched to Archives 6459 | -4/Archives | Unable to access archive contents 6484 | -4/Archives | Entered Hub_04(d) 6484 | -4/Hub_04(d) | Accompanied by 7 allies 6521 | -4/Hub_04(d) | Incoming investigation squad redirected 6533 | -4/Hub_04(d) | Disrupted transfer network 6589 | -4/Hub_04(d) | Reached level 26 6610 | -4/Hub_04(d) | Destroyed 8 combat bots 6711 | -4/Hub_04(d) | Network Hub disabled 6734 | -4/Hub_04(d) | First assault squad dispatched 6737 | -4/Hub_04(d) | Network Hub disabled 6787 | -4/Hub_04(d) | Network Hub disabled 6799 | -4/Hub_04(d) | Spotted Lightning 6799 | -4/Hub_04(d) | Spotted Lightning 6799 | -4/Hub_04(d) | Spotted Lightning 6809 | -4/Hub_04(d) | Destroyed Lightning 6813 | -4/Hub_04(d) | Found Prototype Device 6818 | -4/Hub_04(d) | Identified Exp. EM Disruption Field 6828 | -4/Hub_04(d) | Network Hub disabled 6833 | -4/Hub_04(d) | Spotted Lightning 6833 | -4/Hub_04(d) | Spotted Lightning 6834 | -4/Hub_04(d) | Spotted Lightning 6837 | -4/Hub_04(d) | Entered Research 6839 | -3/Research | Reached level 27 6850 | -3/Research | Upgraded with Utility slot (x1) 6908 | -3/Research | Identified exit to Armory 6908 | -3/Research | Identified exit to Quarantine 6918 | -3/Research | Spotted B-86 Titan 6935 | -3/Research | Identified exit to Research 6935 | -3/Research | Discovered exit to Research (range 14) 6961 | -3/Research | Found Prototype Processor 6961 | -3/Research | Identified Exp. Target Analyzer 6975 | -3/Research | Found Prototype Processor 6975 | -3/Research | Identified Exp. Targeting Computer 7028 | -3/Research | Entered Armory 7028 | -3/Armory | Accompanied by 1 ally 7029 | -3/Armory | Loaded intel: 13 terminal locations 7030 | -3/Armory | Loaded intel: 2 repair station locations 7113 | -3/Armory | Build established: Generator-Scout 7178 | -3/Armory | Fabricated X-77 Beamer (x2) 7188 | -3/Armory | Reached level 28 7305 | -3/Armory | Fabricated X-77 Beamer (x2) 7394 | -3/Armory | Fabricated X-77 Beamer? 7408 | -3/Armory | P-80 Master assimilated allied Beamer 8d 7511 | -3/Armory | Destroyed 11 combat bots 7537 | -3/Armory | Reached level 29 7562 | -3/Armory | Discovered exit to Research (range 9) 7576 | -3/Armory | First assault squad dispatched 7587 | -3/Armory | Identified exit to Lab 7587 | -3/Armory | Discovered exit to Lab (range 7) 7598 | -3/Armory | Entered Lab 7598 | -3/Lab | Discovered exit to Research (range 9) 7601 | -3/Lab | Unable to decrypt terminal 7611 | -3/Lab | Unable to decrypt terminal 7620 | -3/Lab | Unable to decrypt terminal 7625 | -3/Lab | Enhanced Grunt warped into view, answering call for help 7626 | -3/Lab | Enhanced Grunt warped into view, answering call for help 7696 | -3/Lab | Unable to decrypt terminal 7697 | -3/Lab | Entered Research 7697 | -2/Research | Accompanied by 2 allies 7697 | -2/Research | Warlord forces began assault on 0b10 7699 | -2/Research | Reached level 30 7700 | -2/Research | Upgraded with Utility slot (x1) 7725 | -2/Research | Spotted B-90 Cyclops 7766 | -2/Research | Identified exit to Testing 7807 | -2/Research | Research machine network offline 7867 | -2/Research | Entered Testing 7869 | -2/Testing | Reached level 31 7896 | -2/Testing | Identified exit to Access 7968 | -2/Testing | Fabricated X-77 Beamer? 8015 | -2/Testing | Found Prototype Energy Gun 8015 | -2/Testing | Identified Hyp. EM Gauss Rifle 8051 | -2/Testing | Found Beam Splitter 8079 | -2/Testing | Scanned by Researcher 8179 | -2/Testing | Fabricated X-77 Beamer? 8226 | -2/Testing | Found Prototype Protection 8226 | -2/Testing | Identified Med. Regenerative Plating 8320 | -2/Testing | Spotted Fortress 8355 | -2/Testing | Destroyed Fortress 8375 | -2/Testing | Identified exit to Section 7 8375 | -2/Testing | Discovered exit to Section 7 (range 14) 8433 | -2/Testing | Entered Section 7 8433 | -2/Section 7 | Accompanied by 2 allies 8435 | -2/Section 7 | Reached level 32 8453 | -2/Section 7 | Found Alien Artifact 8453 | -2/Section 7 | Identified Integrated Mediator 8453 | -2/Section 7 | Installed Integrated Mediator, increased core attachment efficiency. 8481 | -2/Section 7 | Scanned by Researcher 8493 | -2/Section 7 | Garrison activated, responded to threat 8501 | -2/Section 7 | Found Alien Artifact 8501 | -2/Section 7 | Identified Integrity Redistributor 8501 | -2/Section 7 | Used Integrity Redistributor, redistributed integrity from core (-0) 8535 | -2/Section 7 | Found Alien Artifact 8567 | -2/Section 7 | Destroyed 7 combat bots 8642 | -2/Section 7 | Found Alien Artifact 8642 | -2/Section 7 | Identified Integrated Dissipator (x2) 8642 | -2/Section 7 | Installed Integrated Dissipator, increased core heat dissipation (+20) 8682 | -2/Section 7 | Spotted B-90 Cyclops 8683 | -2/Section 7 | Search patrols dispatched 8696 | -2/Section 7 | Discovered exit to Access (range 13) 8705 | -2/Section 7 | Intercept squad dispatched 8705 | -2/Section 7 | Spotted Tracker 8705 | -2/Section 7 | Spotted Tracker 8716 | -2/Section 7 | Spotted Combat Programmer 8717 | -2/Section 7 | Spotted Combat Programmer 8754 | -2/Section 7 | Core integrity fell below 50% 8763 | -2/Section 7 | Core integrity fell below 20% 8770 | -2/Section 7 | Destroyed by Q060-a with Enhanced Force Lance Last Messages --------------- cleaned. 08764_ Slug penetrates Wall. 08765_ Penetrated by Slug. 08765_ Penetrated by EMDS Slug. 08765_ EMDS Slug penetrates Wall. 08767_ Penetrated by Slug. 08767_ Slug penetrates H-88 Terminator. 08767_ Penetrated by Slug. 08767_ Combat Programmer resets H-88 Terminator, system corruption cleaned. 08767_ Q060-a follow-up attacks with Enh. Force Lance. 08767_ Penetrated by Slug. 08767_ Slug penetrates Wall. 08768_ Penetrated by EMDS Slug. 08768_ H-88 Terminator destroyed. 08768_ Penetrated by Slug. 08769_ Cld. Antigrav System temporarily disabled. 08769_ EMDS Slug penetrates Q060-a. 08770_ Penetrated by EMDS Slug. 08770_ Q060-a follow-up attacks with Enh. Force Lance. Map ----- +----------------------------------------------------+ | | | | | | | | | | | | | | | | | | | | | | | | | | | #??###??########################################## | | ##?##?#??######################################### | | #?#??#?##### """"""" ############################# | | ?###??###### """"""" ############################# | | #???##?###?# """"""" ########### ################# | | ###???#?#### ########### ############ | | ############ ########### "" ############ | | #??#### ########### T" ############ | | ####### ###########[ "" ############ | | #####?# ########### ############ | | ###########+########## #### ############ | | # #######;###;###+############T# | | + < Q%@ phg%Y " | | "" # hh[Qpgh%s " | | !" " A ###########;###g######+####### | | "" # ######+######### # ### #? ##### | | # # ############ # """ ##### | | # # """ """ ########## # |# "R ##### | | # # """ """ ############ + """ Y#### | | ###### # """ """ ############ [# "" ##### | | ###### k# """ """ ############ #! ##### | | ###### # """ """ ############################?# | | """"?# # ############################## | | ""T""# # = Y############################# | | "?# ######################################## | | ?? u #?###################################### | | ######################################## | | ######?################################# | | ? #?#?##?################################# | | ? ###??#########?##########################? | | " """" #??????#?################################# | | " ?""? ?#????#?##??############################?? | | ? ?""?? ??????????#???####################?###???? | | " ""?" ??????????#???????#################???????? | | " ?"""? ??????????????????##?#?##??###???????????? | | ? "? ??????????????????????????##???????????????? | | ???????????????????????????????????????????? | +----------------------------------------------------+ Best States ------------- Heat Dissipation 171 Energy Generation 173 Energy Capacity 450 Matter Stores 300 Matter Capacity 300 Sight Range 20 Robot Scan Range 28 Terrain Scan Range 20 Terrain Scan Density 1010 Jamming Range 16 Cloak Strength 4 Power Amplification 70 Armor Coverage 1200 Resistance: KI 55 Resistance: TH 100 Resistance: EX 35 Resistance: EM 100 Resistance: I 35 Resistance: S 35 Resistance: P 35 Propulsion Shielding 90 Phase Shifting 15 Evasion (%) 90 Particle Charging 20 Offensive Hacking 20 Item Schematics ----------------- Hover Unit | -10/Materials | Hacked Med. Reactive Plating | -7/Zion | Archive Hvy. Machine Gun | -7/Zion | Archive Hvy. Battle Rifle | -7/Zion | Archive Thermic Laser | -7/Zion | Archive System Restoration Module | -7/Zion | Archive Adv. Sensor Array | -7/Zion | Archive Gatling Laser | -7/Zion | Archive Imp. Focal Shield | -7/Zion | Archive Adv. System Shield | -7/Zion | Archive Hvy. Missile Launcher | -7/Zion | Archive Imp. Actuator Array | -7/Zion | Archive Imp. Shield Generator | -7/Zion | Archive Imp. Cooling System | -7/Zion | Archive 0b10 Decoder Chip [Generic] | -7/Zion | Archive Combat Drone Bay | -6/Data Miner | Free Lgt. Regenerative Plating | -6/Data Miner | Free Cld. Gravmag System | -6/Data Miner | Free Thunder Hammer | -6/Data Miner | Free Imp. Thermal Defense Suite | -6/Data Miner | Free Adv. VSS Leg | -6/Data Miner | Free Adv. Transmission Jammer | -6/Data Miner | Free Matter Neutralizer | -6/Data Miner | Free Fusion Bomb Launcher | -6/Data Miner | Free Field Propulsion Array | -6/Data Miner | Free Adv. Recalibrator | -6/Data Miner | Free Cld. Aerolev Unit | -3/Armory | Hacked Hdn. Centrium Heavy Treads | -2/Testing | Archive Hvy. Neutron Cannon | -2/Testing | Archive Exp. Heat Sink | -2/Testing | Archive Adv. Variable Charge Gun | -2/Testing | Archive Enh. Coil Gun | -2/Testing | Archive Electron Diverter | -2/Testing | Archive Enh. Biometal Leg | -2/Testing | Archive Cld. Antimatter Reactor | -2/Testing | Archive Plasma Sword | -2/Testing | Archive Nanosword | -2/Section 7 | Archive Imp. Energy Mantle | -2/Section 7 | Archive Gravity Neutralizer | -2/Section 7 | Archive Cld. Phase Gun | -2/Section 7 | Archive Exp. Energy Well | -2/Section 7 | Archive Hvy. Dispersion Rifle | -2/Section 7 | Archive Robot Schematics ------------------ K-01 Serf | -7/Zion | Archive R-06 Scavenger | -7/Zion | Archive I-36 Angel | -7/Zion | Archive X-77 Beamer | -7/Zion | Archive Y-54 Guardian | -6/Data Miner | Free B-60 Warrior | -6/Data Miner | Free G-50 Soldier | -6/Data Miner | Free H-66 Slayer | -6/Data Miner | Free T-07 Excavator | -2/Testing | Archive S-43 Plague | -2/Section 7 | Archive O-32 Director | -2/Section 7 | Archive Fabricated ------------ X-77 Beamer | x2 | -3/Armory X-77 Beamer | x2 | -3/Armory X-77 Beamer | x2 | -3/Armory X-77 Beamer | x2 | -2/Testing X-77 Beamer | x2 | -2/Testing Alien Tech Used ----------------- Integrated Mediator Integrity Redistributor Integrated Dissipator Achievements -------------- None Challenges ------------ None RPGLIKE | -11 -10 -10 -10 -9 -8 -7 -7 -7 -7 -7 -6 -6 -6 -6 -6 -5 -5 -5 -5 -5 -4 -4 -4 -4 -4 -4 -3 -3 -3 -2 -2 -2 --------- Run | Scr Mat Min Exi Min Mat Fac Low Low Zio Dee Pro Fac Low Low Dat Pro Fac Upp Upp War Pro Fac Ext Cet Arc Hub Res Arm Lab Res Tes Sec Levels Raised 31 | . . . 1 . 6 3 1 . 1 1 1 1 1 . . 1 2 . 1 . 1 1 1 1 . 1 1 2 . 1 1 1 XP Earned 53345 | 6000 980 500 200 926 9251 4393 650 850 650 1500 1100 2435 842 522 453 1573 2687 349 349 486 1000 1866 1439 1363 279 1237 1791 2520 719 1638 1661 1136 XP Spent 50405 | 5965 . . 1450 . 8595 3475 2925 . 1530 1250 . 3260 . . . 1700 4300 . . 600 1400 880 3125 . . 1100 3370 . 1350 3200 930 . Upgrades 97 | 22 . . 4 . 22 9 4 . 3 1 . 7 . . . 1 2 . . 1 1 2 3 . . 1 6 . 4 1 3 . Power Slot 4 | . . . . . 1 . 1 . . . . 1 . . . . . . . . 1 . . . . . . . . . . . Propulsion Slot 5 | 2 . . . . 2 . 1 . . . . . . . . . . . . . . . . . . . . . . . . . Utility Slot 10 | 2 . . . . . 2 . . . . . . . . . 1 2 . . . . . 1 . . . 1 . . 1 . . Weapon Slot 2 | 1 . . . . 1 . . . . . . . . . . . . . . . . . . . . . . . . . . . Core Integrity 8 | . . . . . . 4 . . . . . . . . . . . . . . . . . . . . 4 . . . . . Heat Dissipation 21 | 4 . . 3 . 6 . . . . . . 6 . . . . . . . . . 2 . . . . . . . . . . Energy Generation 1 | . . . . . 1 . . . . . . . . . . . . . . . . . . . . . . . . . . . Energy Storage 4 | . . . . . . . 2 . . . . . . . . . . . . . . . 2 . . . . . . . . . Mass Support 3 | 1 . . . . . . . . . . . . . . . . . . . 1 . . . . . 1 . . . . . . Inventory Capacity 5 | 3 . . 1 . . . . . . 1 . . . . . . . . . . . . . . . . . . . . . . Sight Range 4 | . . . . . 2 . . . 2 . . . . . . . . . . . . . . . . . . . . . . . Sensor Range 14 | 6 . . . . 3 1 . . . . . . . . . . . . . . . . . . . . . . 4 . . . Terrain Scan Density 10 | 3 . . . . 2 2 . . 1 . . . . . . . . . . . . . . . . . . . . . 2 . Ranged Accuracy 2 | . . . . . 2 . . . . . . . . . . . . . . . . . . . . . . . . . . . KI Resistance % 1 | . . . . . . . . . . . . . . . . . . . . . . . . . . . . . . . 1 . TH Resistance % 1 | . . . . . . . . . . . . . . . . . . . . . . . . . . . 1 . . . . . TH Damage % 2 | . . . . . 2 . . . . . . . . . . . . . . . . . . . . . . . . . . . Protomatter Created 3415 | . 41 . . 12 406 228 . 26 . 57 . 197 89 125 . 76 235 . . . . 75 309 237 . 267 . 484 . 96 322 133 Integrity Restored 3843 | . 51 . . 57 778 266 26 131 . 265 . 402 . 19 . 43 176 . . . . 191 127 186 . 160 313 167 . 8 201 276 Core 2485 | . 46 . . 57 559 174 9 50 . 265 . 204 . 15 . 26 95 . . . . 101 50 92 . 107 177 124 . 6 101 227 Parts 1358 | . 5 . . . 219 92 17 81 . . . 198 . 4 . 17 81 . . . . 90 77 94 . 53 136 43 . 2 100 49 Protomatter Decayed 3468 | . 22 . . 103 30 99 26 . . . . 25 . 116 . 61 204 . . 125 . . 166 168 . 609 . 573 . 487 425 229 Game ------ Seed BorePhaseTorch Manual? 0 Play Time 02:45:24 Cumulative 253.8 hours Start 2022.06.14 @ 14:19:55 End 2022.06.14 @ 18:35:51 Sessions 1 Manual Loads 0 Difficulty Explorer Special Mode Winter2019/RPGLIKE Game No. 86 Rogue 0 Adventurer 1 Explorer 85 Win Type - Total 16 Types 9/0/4/3/0/0/0/0/0 Lore% 87 Gallery% 87 Achievement% 74 Wizard Run 0 Options --------- ASCII 0 Keyboard 1 Movement Numpad Keybinds 0 Fullscreen 0 Font 14/Terminus Map View 76x50 Tactical HUD 1 Map Filters BRIGHTNESS(150) Filters NONE Steam 1 RUN: 3615d68e-d12c-442b-8baf-616aa43b1a1f